bitfinex-derivatives/quotes_SOLF0:USTF0_20240926
["timestamp","ask_amount","ask_price","bid_price","bid_amount"]
[1727316149114,3.41212569,148.62,148.54,16.18]
[1727316149315,16.18,148.61,148.51,16.18]
[1727316149521,1.3728,148.65,148.51,16.18]
[1727316149522,2.7549,148.6,148.51,16.18]
[1727316149722,1.3772,148.59,148.51,16.18]
[1727316150126,3.43131952,148.65,148.57,16.18]
[1727316150421,2.7343,148.67,148.57,16.18]
[1727316150626,19.56473798,148.67,148.57,16.18]
[1727316150819,17.5778,148.66,148.57,16.18]
[1727316151124,3.365,148.61,148.57,16.18]
[1727316151418,13.46276118,148.65,148.57,16.18]
[1727316151624,13.46276118,148.65,148.55,19.5463]
[1727316151625,3.3653,148.6,148.55,19.5463]
[1727316151814,16.18,148.64,148.55,16.18]
[1727316152014,16.18,148.64,148.54,16.18]
[1727316152219,3.3657,148.58,148.54,16.18]
[1727316153121,3.36520317,148.59,148.52,97.0]
[1727316153323,16.18,148.6,148.52,97.0]
[1727316153525,6.10884315,148.59,148.52,97.0]
[1727316153726,3.3663,148.56,148.52,97.0]
[1727316154828,3.3663,148.56,148.52,100.3669]
[1727316155525,3.3659,148.57,148.53,3.3668]
[1727316156232,1.334,148.59,148.55,3.3663]
[1727316157228,4.6996,148.59,148.55,3.3663]
[1727316160428,3.3657,148.58,148.54,19.5465]
[1727316161226,3.3659,148.57,148.54,19.5465]
[1727316161932,13.46721726,148.62,148.55,16.18]
[1727316162126,13.46674914,148.64,148.55,16.18]
[1727316162328,3.3652,148.6,148.56,3.366]
[1727316163836,3.3655,148.59,148.55,19.5462]
[1727316166636,3.3655,148.59,148.56,3.366]
[1727316167543,16.18,148.64,148.57,3.3658]
[1727316168040,2.653,148.65,148.59,3.3654]
[1727316168456,3.3646,148.63,148.59,3.3654]
[1727316168738,3.3646,148.63,148.6,3.3651]
[1727316169144,3.3646,148.63,148.59,3.3652]
[1727316171240,3.3643,148.64,148.59,16.18]
[1727316171647,1.2945,148.65,148.59,16.18]
[1727316171847,3.3643,148.64,148.59,16.18]
[1727316172350,3.3646,148.63,148.59,16.18]
[1727316172950,3.3647,148.62,148.59,19.5452]
[1727316175348,3.3646,148.63,148.59,19.5452]
[1727316177643,3.3646,148.63,148.6,3.3651]
[1727316178656,3.3646,148.63,148.59,19.5453]
[1727316179254,1.2945,148.65,148.59,16.18]
[1727316179451,18.14999657,148.67,148.59,16.18]
[1727316179656,16.18,148.64,148.54,80.8]
[1727316179852,18.14999657,148.67,148.54,80.8]
[1727316179853,2.6207,148.66,148.54,80.8]
[1727316180156,16.18,148.62,148.54,80.8]
[1727316180364,6.02629515,148.66,148.56,10.35]
[1727316180365,10.35,148.61,148.56,10.35]
[1727316180652,2.6207,148.66,148.56,10.35]
[1727316180653,5.96963091,148.66,148.56,10.35]
[1727316180854,10.35,148.62,148.56,13.7159]
[1727316181161,3.35936896,148.64,148.58,10.35]
[1727316181349,10.35,148.63,148.5,82.0754]
[1727316181647,3.3651,148.61,148.57,10.35]
[1727316181849,10.35,148.63,148.59,10.35]
[1727316182055,23.79161276,148.65,148.61,10.35]
[1727316182246,10.35,148.65,148.61,10.35]
[1727316182454,3.3646,148.63,148.59,19.5253]
[1727316183151,3.3646,148.63,148.5,85.47248063]
[1727316183152,6.06525693,148.66,148.5,85.47248063]
[1727316183352,16.16,148.64,148.54,16.16]
[1727316183751,3.3654,148.59,148.56,3.3659]
[1727316183951,6.06525693,148.66,148.56,3.3659]
[1727316184153,6.06525693,148.66,148.54,16.16]
[1727316184154,3.3651,148.61,148.57,3.3658]
[1727316184559,16.16,148.65,148.57,3.3658]
[1727316185853,3.3652,148.6,148.57,3.3658]
[1727316186655,3.365,148.61,148.56,16.16]
[1727316187160,3.3652,148.6,148.57,3.3658]
[1727316187454,6.06525693,148.66,148.57,3.3658]
[1727316187655,3.365,148.61,148.57,3.3658]
[1727316188252,3.365,148.61,148.58,3.3656]
[1727316188457,3.3648,148.62,148.58,3.3656]
[1727316188854,16.0669232,148.66,148.61,3.3648]
[1727316189051,2.6207,148.66,148.58,16.16]
[1727316189756,3.3643,148.64,148.6,3.365]
[1727316189955,2.6207,148.66,148.6,16.16]
[1727316190156,3.3642,148.65,148.61,3.3648]
[1727316190459,16.16,148.69,148.56,80.8]
[1727316190460,6.7236,148.75,148.62,16.16]
[1727316190648,13.44021564,148.78,148.64,16.16]
[1727316190952,10.0817,148.81,148.66,16.16]
[1727316190953,2.6952,148.74,148.66,16.16]
[1727316191149,3.3622,148.73,148.68,3.3631]
[1727316191347,17.5667,148.77,148.66,16.16]
[1727316191551,16.16,148.75,148.66,16.16]
[1727316191757,3.3627,148.71,148.66,19.5236]
[1727316192066,3.3627,148.71,148.66,16.16]
[1727316192451,3.3627,148.71,148.66,19.5236]
[1727316192751,3.3627,148.71,148.66,16.16]
[1727316193753,3.3627,148.71,148.67,3.3635]
[1727316194351,3.3627,148.71,148.66,19.5237]
[1727316195451,3.3627,148.71,148.67,3.3636]
[1727316196056,3.3627,148.71,148.66,19.5238]
[1727316197253,1.2795,148.74,148.66,19.5238]
[1727316197254,3.363,148.7,148.66,19.5238]
[1727316198160,3.35351675,148.72,148.64,80.78]
[1727316198559,3.3633,148.69,148.65,3.364]
[1727316198759,1.2829,148.73,148.65,16.16]
[1727316199266,1.2829,148.73,148.67,16.16]
[1727316199759,3.3629,148.71,148.67,19.5234]
[1727316200963,3.3629,148.7,148.67,19.5234]
[1727316201362,1.2829,148.73,148.68,3.3632]
[1727316201562,4.58011474,148.73,148.65,16.16]
[1727316201758,1.2829,148.73,148.65,16.16]
[1727316201963,3.3633,148.69,148.65,19.5238]
[1727316203061,3.3633,148.69,148.65,16.16]
[1727316203257,3.3633,148.69,148.66,3.3638]
[1727316204367,3.3633,148.69,148.67,10.33]
[1727316206066,1.2829,148.73,148.68,10.33]
[1727316206862,3.3628,148.71,148.68,10.33]
[1727316207265,1.2829,148.73,148.68,10.33]
[1727316208163,3.3629,148.71,148.68,10.33]
[1727316209169,3.363,148.7,148.68,10.33]
[1727316209666,3.3633,148.69,148.66,3.3638]
[1727316209868,3.3633,148.69,148.67,10.33]
[1727316210870,3.3633,148.69,148.65,3.3639]
[1727316211067,10.33,148.72,148.67,10.33]
[1727316211470,3.3633,148.69,148.67,10.33]
[1727316212072,3.3634,148.68,148.67,10.33]
[1727316212680,3.3632,148.69,148.67,10.33]
[1727316215673,4.56553177,148.73,148.62,80.74]
[1727316215874,10.33,148.69,148.64,10.33]
[1727316216178,1.4055,148.71,148.62,80.74]
[1727316216477,10.33,148.65,148.62,80.74]
[1727316216878,3.3645,148.64,148.62,80.74]
[1727316217875,3.364,148.66,148.62,84.1047]
[1727316218080,11.6109,148.67,148.62,91.07]
[1727316218278,1.2809,148.67,148.62,80.74]
[1727316219078,3.3645,148.63,148.62,80.74]
[1727316219381,16.16,148.65,148.56,16.16]
[1727316219577,16.16,148.61,148.53,84.1266]
[1727316219774,1.3309,148.6,148.53,80.76]
[1727316220078,3.3665,148.54,148.53,80.76]
[1727316220470,16.16,148.58,148.53,80.76]
[1727316220677,3.3663,148.55,148.53,80.76]
[1727316221079,16.16,148.58,148.53,80.76]
[1727316221883,3.3661,148.56,148.53,80.76]
[1727316222084,18.829,148.6,148.53,80.76]
[1727316222475,3.3658,148.58,148.53,3.3667]
[1727316222677,18.829,148.6,148.5,16.16]
[1727316222877,2.669,148.6,148.5,16.16]
[1727316223083,16.16,148.58,148.48,80.78]
[1727316223284,16.16,148.56,148.48,80.78]
[1727316223486,3.3669,148.53,148.48,84.1477]
[1727316223780,3.3669,148.53,148.48,80.78]
[1727316224379,3.3669,148.53,148.48,84.1478]
[1727316225180,3.33389117,148.55,148.48,80.78]
[1727316225484,16.16,148.54,148.48,80.78]
[1727316225676,1.3567,148.53,148.48,80.78]
[1727316225881,3.3674,148.5,148.48,80.78]
[1727316226082,1.3567,148.53,148.48,80.78]
[1727316226387,3.3675,148.5,148.48,80.78]
[1727316227084,4.68261865,148.53,148.48,80.78]
[1727316227085,3.3677,148.49,148.48,80.78]
[1727316229589,4.68261865,148.53,148.48,80.78]
[1727316229590,3.3675,148.5,148.48,80.78]
[1727316230783,1.3567,148.53,148.48,80.78]
[1727316231485,3.3672,148.52,148.48,84.1479]
[1727316231683,1.3567,148.53,148.48,80.78]
[1727316232088,1.3567,148.53,148.47,3.3679]
[1727316232089,3.3673,148.51,148.47,3.3679]
[1727316232396,1.3567,148.53,148.46,16.16]
[1727316232684,4.7236,148.53,148.49,3.3676]
[1727316232895,3.3669,148.53,148.49,3.3676]
[1727316233083,17.4915,148.57,148.5,3.3674]
[1727316233084,3.3666,148.54,148.5,3.3674]
[1727316233685,3.3666,148.54,148.48,16.16]
[1727316233686,3.3657,148.58,148.54,3.3665]
[1727316233984,1.2971,148.61,148.54,3.3665]
[1727316234190,17.4571,148.61,148.52,16.16]
[1727316234392,1.2971,148.61,148.52,16.16]
[1727316234593,17.4571,148.61,148.53,3.3667]
[1727316235091,3.366,148.57,148.53,3.3667]
[1727316236286,3.3661,148.56,148.53,3.3667]
[1727316236489,17.4571,148.61,148.52,16.16]
[1727316236689,16.16,148.6,148.5,16.16]
[1727316236891,3.3663,148.56,148.5,16.16]
[1727316237488,3.3663,148.56,148.52,3.3668]
[1727316238388,3.3659,148.57,148.5,16.16]
[1727316238593,3.3659,148.57,148.53,3.3666]
[1727316239594,3.3661,148.56,148.53,3.3666]
[1727316240990,17.4571,148.61,148.53,3.3666]
[1727316240991,3.3659,148.57,148.53,3.3666]
[1727316241792,3.3659,148.57,148.5,16.16]
[1727316241793,3.3659,148.57,148.54,3.3665]
[1727316242496,17.4571,148.61,148.5,16.16]
[1727316242695,16.16,148.59,148.5,16.16]
[1727316243296,16.16,148.59,148.52,3.3669]
[1727316243485,16.16,148.59,148.5,16.16]
[1727316243686,1.2971,148.61,148.48,17.4375]
[1727316243892,1.2971,148.61,148.47,80.82]
[1727316243893,16.16,148.55,148.47,80.82]
[1727316244096,2.6715,148.54,148.44,16.16]
[1727316244400,16.16,148.53,148.44,16.16]
[1727316244791,16.16,148.53,148.44,19.52139483]
[1727316245191,4.0135,148.54,148.44,19.52139483]
[1727316245391,4.0135,148.54,148.46,16.16]
[1727316246590,3.367,148.52,148.48,3.3677]
[1727316246793,2.6715,148.54,148.48,16.16]
[1727316246992,3.3669,148.53,148.5,3.3674]
[1727316247189,1.3217,148.54,148.5,3.3674]
[1727316247496,1.3861,148.58,148.48,16.16]
[1727316247701,2.7392,148.58,148.44,3.37330809]
[1727316247997,16.16,148.57,148.48,16.16]
[1727316248198,3.3667,148.54,148.5,3.3674]
[1727316248790,3.3668,148.53,148.48,16.16]
[1727316248995,3.32175833,148.56,148.46,16.16]
[1727316249303,3.3673,148.51,148.46,16.16]
[1727316249691,19.52308467,148.54,148.46,16.16]
[1727316249998,3.3676,148.5,148.44,19.49580003]
[1727316250501,3.3676,148.5,148.46,3.3682]
[1727316251300,3.3673,148.51,148.47,3.3681]
[1727316251599,3.36308467,148.54,148.47,3.3681]
[1727316251799,3.368,148.48,148.44,16.16]
[1727316252103,19.53173322,148.5,148.42,1.2775]
[1727316252401,3.368,148.48,148.44,3.3686]
[1727316252805,3.368,148.48,148.43,16.16]
[1727316253798,3.368,148.48,148.45,3.3685]
[1727316255200,17.5237,148.51,148.44,3.3687]
[1727316255504,18.8119,148.51,148.44,3.3687]
[1727316256503,3.3681,148.47,148.44,3.3687]
[1727316257293,18.8119,148.51,148.43,3.369]
[1727316258398,3.3683,148.47,148.43,3.369]
[1727316260600,3.3685,148.46,148.42,3.3692]
[1727316260805,16.16,148.49,148.4,3.37442845]
[1727316261194,3.9925,148.51,148.38,17.4392]
[1727316261395,16.16,148.47,148.38,17.4392]
[1727316261596,16.16,148.47,148.39,3.3698]
[1727316261597,3.3693,148.42,148.39,3.3698]
[1727316262208,16.16,148.47,148.39,3.3698]
[1727316262209,3.3691,148.43,148.39,3.3698]
[1727316262405,16.16,148.45,148.38,3.3701]
[1727316262605,16.16,148.45,148.37,80.86]
[1727316262901,3.3693,148.43,148.37,80.86]
[1727316263601,3.3693,148.42,148.38,3.37]
[1727316265707,3.3695,148.41,148.38,3.37]
[1727316266308,3.40420857,148.44,148.37,84.2304]
[1727316266506,6.08600857,148.44,148.37,80.86]
[1727316266707,6.08600857,148.44,148.37,84.2303]
[1727316266909,22.24600857,148.44,148.37,84.2303]
[1727316267308,3.3699,148.4,148.37,80.86]
[1727316268215,3.3702,148.38,148.37,80.86]
[1727316268510,1.4016,148.43,148.32,16.16]
[1727316268710,16.16,148.41,148.32,16.16]
[1727316268911,16.16,148.41,148.33,3.3711]
[1727316269909,16.16,148.4,148.33,3.3711]
[1727316270311,1.4016,148.43,148.33,3.3711]
[1727316270511,16.16,148.41,148.33,3.3711]
[1727316270811,3.3705,148.37,148.33,3.3711]
[1727316272110,3.3702,148.38,148.34,3.3711]
[1727316274013,16.16,148.41,148.32,16.16]
[1727316274816,3.37,148.39,148.35,3.3707]
[1727316275612,3.3702,148.38,148.34,3.371]
[1727316276416,3.37,148.39,148.35,13.7308]
[1727316276714,10.36,148.42,148.37,10.36]
[1727316277121,3.3698,148.4,148.37,10.36]
[1727316277713,10.36,148.41,148.37,10.36]
[1727316278414,16.19,148.42,148.35,3.3708]
[1727316278822,3.3701,148.39,148.35,3.3708]
[1727316279613,3.3701,148.39,148.36,3.3706]
[1727316280426,3.3698,148.4,148.34,16.19]
[1727316280821,3.3698,148.4,148.36,3.3705]
[1727316281216,3.37,148.39,148.36,3.3705]
[1727316281526,16.19,148.42,148.32,16.19]
[1727316281824,3.3704,148.38,148.34,3.371]
[1727316282024,16.19,148.42,148.34,3.371]
[1727316282222,1.4016,148.43,148.34,3.371]
[1727316282428,3.3703,148.38,148.34,3.371]
[1727316282630,16.19,148.41,148.34,3.371]
[1727316283024,16.19,148.39,148.33,3.3712]
[1727316283327,16.19,148.39,148.3,16.19]
[1727316283527,1.3229,148.38,148.3,16.19]
[1727316283728,3.3708,148.36,148.32,3.3714]
[1727316284120,17.5129,148.38,148.32,3.3714]
[1727316284321,3.3708,148.36,148.32,3.3714]
[1727316291633,3.3708,148.36,148.3,16.19]
[1727316292931,3.3708,148.36,148.32,3.3714]
[1727316293924,3.3708,148.35,148.32,3.3714]
[1727316294736,3.3707,148.36,148.32,3.3714]
[1727316297636,16.19,148.37,148.29,73.96507237]
[1727316297833,17.5321,148.37,148.29,73.96507237]
[1727316298336,3.3712,148.34,148.3,13.7418]
[1727316298537,1.3421,148.37,148.3,10.37]
[1727316298730,10.37,148.36,148.3,10.37]
[1727316298926,3.371,148.35,148.31,3.3717]
[1727316299434,3.371,148.35,148.3,10.37]
[1727316300138,3.371,148.35,148.32,10.37]
[1727316300432,1.3421,148.37,148.34,10.37]
[1727316300835,11.7121,148.37,148.33,10.37]
[1727316303036,3.3708,148.36,148.33,13.7412]
[1727316305140,1.3229,148.38,148.35,10.37]
[1727316305341,10.37,148.42,148.37,10.37]
[1727316305537,4.0663,148.43,148.35,10.37]
[1727316305538,10.37,148.4,148.35,10.37]
[1727316305936,3.3702,148.38,148.35,13.7408]
[1727316306834,3.37,148.39,148.35,13.7408]
[1727316308743,10.37,148.4,148.29,73.96507237]
[1727316309041,10.37,148.4,148.35,10.37]
[1727316309351,3.3703,148.38,148.35,10.37]
[1727316310831,10.37,148.39,148.35,10.37]
[1727316311032,10.37,148.38,148.33,3.3712]
[1727316311231,10.37,148.38,148.33,13.7412]
[1727316311441,3.3706,148.37,148.33,13.7412]
[1727316311641,10.37,148.38,148.33,13.7412]
[1727316312346,3.3708,148.36,148.33,10.37]
[1727316312842,3.3708,148.36,148.32,3.3714]
[1727316312843,3.3709,148.35,148.32,13.7414]
[1727316313340,3.3709,148.35,148.32,10.37]
[1727316313544,3.3709,148.35,148.31,13.7416]
[1727316313545,13.7409,148.35,148.31,13.7416]
[1727316313735,3.3711,148.34,148.31,13.7416]
[1727316313941,3.3711,148.34,148.31,10.37]
[1727316314644,3.3713,148.33,148.29,77.33707237]
[1727316314945,3.3713,148.33,148.29,84.33507237]
[1727316315344,3.3713,148.33,148.29,87.70707237]
[1727316316850,10.37,148.33,148.28,3.3724]
[1727316317148,10.37,148.32,148.27,80.92]
[1727316317344,3.3721,148.3,148.27,80.92]
[1727316318352,13.7421,148.3,148.27,80.92]
[1727316318541,3.3724,148.29,148.27,80.92]
[1727316318740,10.37,148.3,148.27,80.92]
[1727316318941,10.37,148.3,148.25,13.743]
[1727316319541,3.3724,148.29,148.25,13.743]
[1727316321049,4.1504,148.32,148.26,10.37]
[1727316321256,14.5204,148.32,148.26,10.37]
[1727316321643,3.3719,148.31,148.27,3.3725]
[1727316322254,2.7335,148.32,148.27,10.37]
[1727316322555,1.3919,148.32,148.27,10.37]
[1727316322853,4.7636,148.32,148.28,3.3723]
[1727316324152,3.3714,148.33,148.27,10.37]
[1727316324355,10.37,148.36,148.3,10.37]
[1727316324855,3.3712,148.34,148.3,13.7418]
[1727316325451,3.3712,148.34,148.31,3.3717]
[1727316328754,3.3712,148.34,148.31,13.7417]
[1727316328954,3.35222077,148.37,148.32,13.7415]
[1727316328955,3.3709,148.35,148.32,13.7415]
[1727316329752,3.3711,148.34,148.32,10.37]
[1727316330056,3.3711,148.34,148.31,13.7417]
[1727316330455,1.2928,148.41,148.33,10.37]
[1727316330657,10.37,148.4,148.35,10.37]
[1727316331550,3.37,148.39,148.36,10.37]
[1727316331750,1.2928,148.41,148.37,10.37]
[1727316332253,3.37,148.39,148.37,10.37]
[1727316333262,3.37,148.39,148.36,10.37]
[1727316339668,1.2928,148.41,148.37,10.37]
[1727316339867,10.15509828,148.48,148.4,10.37]
[1727316339868,3.41899828,148.48,148.4,10.37]
[1727316340065,6.7336,148.53,148.42,10.37]
[1727316340066,10.37,148.46,148.42,10.37]
[1727316340265,14.4442,148.47,148.42,13.7391]
[1727316340468,14.4442,148.47,148.42,10.37]
[1727316342163,4.0742,148.47,148.43,10.37]
[1727316342363,7.4425,148.47,148.43,10.37]
[1727316342562,4.0742,148.47,148.43,10.37]
[1727316343271,3.3685,148.46,148.43,10.37]
[1727316343467,14.4442,148.47,148.43,10.37]
[1727316343667,14.4442,148.47,148.42,10.37]
[1727316344168,10.37,148.46,148.38,3.42748503]
[1727316344472,10.37,148.46,148.4,10.37]
[1727316344861,3.3689,148.44,148.4,13.7397]
[1727316346072,3.3691,148.43,148.4,10.37]
[1727316347574,3.3691,148.43,148.41,10.37]
[1727316347970,3.3691,148.43,148.4,10.37]
[1727316349067,10.37,148.46,148.39,3.3699]
[1727316349068,10.37,148.44,148.39,10.37]
[1727316349575,3.3694,148.42,148.39,10.37]
[1727316351473,10.37,148.43,148.39,10.37]
[1727316351672,10.37,148.43,148.38,10.37]
[1727316352069,10.37,148.42,148.36,80.9]
[1727316352371,10.37,148.42,148.36,91.27]
[1727316352576,13.76457118,148.42,148.36,91.27]
[1727316352776,3.3702,148.38,148.36,91.27]
[1727316353374,3.3702,148.38,148.36,10.37]
[1727316357271,1.3058,148.41,148.37,10.37]
[1727316357475,1.3058,148.41,148.38,10.37]
[1727316357682,3.3699,148.4,148.38,10.37]
[1727316357878,3.3699,148.4,148.37,10.37]
[1727316359983,3.37,148.39,148.37,10.37]
[1727316360381,1.3058,148.41,148.37,13.7404]
[1727316360578,10.37,148.44,148.4,10.37]
[1727316361180,3.3695,148.41,148.39,10.37]
[1727316364277,3.3694,148.42,148.4,10.37]
[1727316364487,11.739,148.46,148.41,10.37]
[1727316365081,3.31265427,148.45,148.41,10.37]
[1727316365283,13.68265427,148.45,148.41,10.37]
[1727316365483,13.68265427,148.45,148.4,10.37]
[1727316365984,3.3695,148.41,148.4,10.37]
[1727316366589,13.68265427,148.45,148.4,10.37]
[1727316367289,3.3694,148.42,148.4,10.37]
[1727316369787,13.68265427,148.45,148.38,13.7401]
[1727316369788,3.3695,148.41,148.38,13.7401]
[1727316370585,3.31265427,148.45,148.37,3.3703]
[1727316370884,10.37,148.43,148.38,10.37]
[1727316371488,3.3693,148.42,148.39,10.37]
[1727316372991,3.3693,148.42,148.39,13.7399]
[1727316376788,3.3696,148.41,148.39,10.37]
[1727316379292,3.3694,148.42,148.39,10.37]
[1727316379689,10.37,148.44,148.38,10.37]
[1727316379996,10.37,148.43,148.38,10.37]
[1727316381393,10.37,148.43,148.38,13.74]
[1727316381602,10.37,148.42,148.37,10.37]
[1727316381997,3.3697,148.4,148.37,13.7403]
[1727316383101,3.40063954,148.43,148.34,3.29579182]
[1727316383102,3.3696,148.41,148.38,13.7401]
[1727316384306,1.369,148.46,148.4,10.37]
[1727316384508,1.369,148.46,148.42,10.37]
[1727316384509,11.739,148.46,148.42,10.37]
[1727316385099,3.369,148.44,148.42,10.37]
[1727316385804,1.369,148.46,148.43,10.37]
[1727316387106,4.7375,148.46,148.43,13.7389]
[1727316387309,4.7375,148.46,148.43,10.37]
[1727316387310,1.369,148.46,148.43,10.37]
[1727316387608,3.3686,148.45,148.43,10.37]
[1727316391612,3.3689,148.44,148.42,10.37]
[1727316392407,3.3692,148.43,148.4,13.7397]
[1727316392711,10.37,148.43,148.38,10.37]
[1727316393419,3.3696,148.41,148.38,13.7401]
[1727316397114,3.3694,148.42,148.39,3.3699]
[1727316397307,3.3694,148.42,148.39,13.7399]
[1727316398718,3.3694,148.42,148.4,3.3697]
[1727316398916,3.3694,148.42,148.39,10.37]
[1727316399317,3.3694,148.42,148.39,13.7399]
[1727316400618,10.37,148.42,148.33,80.9]
[1727316400818,3.39861406,148.45,148.36,10.37]
[1727316400819,10.37,148.4,148.36,10.37]
[1727316401022,10.37,148.42,148.37,10.37]
[1727316401320,10.37,148.42,148.33,80.9]
[1727316401321,10.37,148.42,148.38,10.37]
[1727316401523,10.37,148.43,148.38,13.7402]
[1727316401716,13.4956604,148.45,148.41,10.37]
[1727316401917,1.369,148.46,148.42,10.37]
[1727316402216,1.369,148.46,148.44,10.37]
[1727316402420,6.7321,148.57,148.45,10.37]
[1727316402618,10.37,148.5,148.46,10.37]
[1727316403118,13.49158647,148.51,148.47,10.37]
[1727316403712,14.2653,148.52,148.47,10.37]
[1727316404012,10.37,148.51,148.46,10.37]
[1727316404414,3.368,148.48,148.46,10.37]
[1727316405317,3.3677,148.49,148.47,10.37]
[1727316405924,3.3677,148.49,148.46,10.37]
[1727316407716,10.37,148.5,148.41,3.36522816]
[1727316407921,10.37,148.5,148.45,10.37]
[1727316408325,3.3683,148.47,148.45,10.37]
[1727316409525,3.3684,148.46,148.4,80.88]
[1727316409831,13.6979345,148.49,148.43,10.37]
[1727316412232,10.37,148.49,148.45,10.37]
[1727316412731,3.3683,148.47,148.45,10.37]
[1727316413033,10.37,148.49,148.45,10.37]
[1727316413233,10.37,148.48,148.38,80.88]
[1727316413434,13.47647085,148.51,148.39,3.35343504]
[1727316413630,13.47647085,148.51,148.41,10.37]
[1727316413937,10.37,148.46,148.41,10.37]
[1727316414530,10.37,148.46,148.39,3.3699]
[1727316414733,10.37,148.46,148.4,10.37]
[1727316415731,11.6923,148.46,148.4,10.37]
[1727316415934,3.3692,148.43,148.4,10.37]
[1727316416236,3.3692,148.43,148.41,10.37]
[1727316416834,3.3693,148.42,148.41,10.37]
[1727316418039,3.3695,148.41,148.37,3.42217506]
[1727316418241,2.7353,148.46,148.4,10.37]
[1727316418439,13.1053,148.46,148.4,10.37]
[1727316419642,3.3692,148.43,148.4,10.37]
[1727316422240,3.3693,148.42,148.4,10.37]
[1727316422746,10.37,148.45,148.4,10.37]
[1727316422948,3.3695,148.41,148.39,10.37]
[1727316423743,10.37,148.42,148.35,80.88]
[1727316423942,10.37,148.42,148.38,10.37]
[1727316424142,3.3697,148.41,148.38,10.37]
[1727316424641,10.37,148.45,148.4,10.37]
[1727316424842,4.066,148.46,148.41,10.37]
[1727316425352,3.3693,148.42,148.35,82.159]
[1727316425545,3.3693,148.42,148.4,10.37]
[1727316425940,3.3695,148.41,148.4,10.37]
[1727316430550,3.3695,148.41,148.38,10.37]
[1727316430949,13.47925134,148.45,148.4,10.37]
[1727316431252,3.3693,148.42,148.41,10.37]
[1727316432755,3.3693,148.42,148.4,10.37]
[1727316433357,3.3691,148.43,148.41,10.37]
[1727316434445,3.3693,148.42,148.4,10.37]
[1727316434851,10.37,148.45,148.4,10.37]
[1727316435052,10.37,148.45,148.35,1.279]
[1727316435053,3.3686,148.45,148.43,10.37]
[1727316435249,3.3686,148.45,148.44,10.37]
[1727316436454,3.29984458,148.48,148.36,80.9]
[1727316436455,10.37,148.46,148.36,80.9]
[1727316436655,10.37,148.46,148.41,10.37]
[1727316437057,10.37,148.47,148.42,10.37]
[1727316437256,10.37,148.47,148.36,80.9]
[1727316437257,10.37,148.47,148.43,10.37]
[1727316437457,10.37,148.49,148.43,10.37]
[1727316437654,10.37,148.5,148.45,10.37]
[1727316437860,10.37,148.5,148.46,10.37]
[1727316438257,3.3681,148.47,148.46,10.37]
[1727316439855,10.37,148.5,148.46,10.37]
[1727316440161,14.4225,148.52,148.47,10.37]